bitfinex-derivatives/quotes_ETHF0:USTF0_20241004
["timestamp","ask_amount","ask_price","bid_price","bid_amount"]
[1728019709502,0.4106,2380.1,2379.9,5.5328]
[1728019709803,0.841,2380.2,2379.9,5.5328]
[1728019709804,0.4161,2380.2,2380.0,0.4181]
[1728019710006,0.42014,2380.3,2380.0,0.4181]
[1728019710202,0.42014,2380.3,2380.0,0.8372]
[1728019710396,3.18183,2380.4,2380.0,0.8372]
[1728019710801,0.42014,2380.3,2380.0,0.8372]
[1728019711005,2.7617,2380.4,2380.0,0.8372]
[1728019711204,1.2517,2380.4,2380.0,2.3472]
[1728019711402,1.2517,2380.4,2380.0,2.76737]
[1728019711601,0.42014,2380.3,2380.0,2.3472]
[1728019712409,2.7617,2380.4,2380.0,2.76738]
[1728019712410,3.18183,2380.4,2380.0,2.76738]
[1728019712706,3.18183,2380.4,2380.0,1.25738]
[1728019713102,3.18183,2380.4,2380.0,2.76738]
[1728019713298,1.2517,2380.4,2380.1,0.42017]
[1728019713501,1.67182,2380.4,2380.0,2.76737]
[1728019717107,0.42014,2380.3,2380.0,1.25737]
[1728019717417,2.7617,2380.4,2380.0,1.25737]
[1728019717418,3.18182,2380.4,2380.0,1.25737]
[1728019717708,3.18182,2380.4,2380.1,0.42017]
[1728019718910,2.7617,2380.4,2380.0,0.8372]
[1728019719105,3.18182,2380.4,2380.0,0.8372]
[1728019719309,3.18182,2380.4,2380.1,0.42016]
[1728019720314,2.7617,2380.4,2380.2,0.42015]
[1728019720507,2.7617,2380.4,2380.1,0.42016]
[1728019720706,2.7617,2380.4,2380.1,1.93016]
[1728019721204,1.2517,2380.4,2380.1,1.93016]
[1728019721410,1.67181,2380.4,2380.1,5.13796]
[1728019722114,1.67181,2380.4,2380.1,4.7178]
[1728019722314,1.67181,2380.4,2380.1,5.13797]
[1728019723308,1.67181,2380.4,2380.1,4.7178]
[1728019723508,1.67181,2380.4,2380.1,5.13797]
[1728019724719,1.67181,2380.4,2380.1,1.93017]
[1728019725615,1.67181,2380.4,2380.2,0.42015]
[1728019727319,1.2517,2380.4,2380.2,0.42015]
[1728019729211,1.2517,2380.4,2380.1,4.7178]
[1728019729419,1.2517,2380.4,2380.3,0.42013]
[1728019729715,1.2517,2380.4,2380.2,0.42014]
[1728019734521,1.67182,2380.4,2380.1,4.7178]
[1728019734712,1.67182,2380.4,2380.2,0.42014]
[1728019735519,1.67182,2380.4,2380.1,5.13796]
[1728019735726,1.67182,2380.4,2380.1,1.93016]
[1728019735924,1.67182,2380.4,2380.1,5.13796]
[1728019736124,1.67182,2380.4,2380.1,4.7178]
[1728019736626,1.67182,2380.4,2380.1,5.13795]
[1728019737717,1.67182,2380.4,2380.2,0.42015]
[1728019737916,1.2517,2380.4,2380.2,0.42015]
[1728019738418,1.67182,2380.4,2380.2,0.42015]
[1728019740720,1.2517,2380.4,2380.1,3.62796]
[1728019740922,1.67183,2380.4,2380.2,0.42014]
[1728019742922,1.67183,2380.4,2380.1,4.7178]
[1728019742923,0.42013,2380.3,2380.1,5.13795]
[1728019743121,0.42013,2380.3,2380.1,1.93015]
[1728019743325,0.42013,2380.3,2380.1,5.13795]
[1728019743829,1.2517,2380.4,2380.1,3.2078]
[1728019744033,0.42015,2380.2,2380.1,3.2078]
[1728019747218,1.2517,2380.4,2380.1,3.2078]
[1728019747219,0.42014,2380.3,2380.1,3.2078]
[1728019747435,0.42015,2380.2,2380.1,3.2078]
[1728019747731,1.2517,2380.4,2380.1,3.2078]
[1728019747926,1.67182,2380.4,2380.2,0.42014]
[1728019749023,1.2517,2380.4,2380.2,0.42014]
[1728019749826,1.2517,2380.4,2380.1,4.7178]
[1728019750033,1.67183,2380.4,2380.1,5.13796]
[1728019751928,1.67183,2380.4,2380.1,6.24129764]
[1728019752124,1.2517,2380.4,2380.1,5.13796]
[1728019752533,1.2517,2380.4,2380.1,6.24129764]
[1728019752833,0.42013,2380.3,2380.1,5.13796]
[1728019753034,0.42013,2380.3,2380.1,6.24129764]
[1728019753425,0.42013,2380.3,2380.1,5.82113764]
[1728019753629,0.42013,2380.3,2380.1,1.10333764]
[1728019753836,0.42013,2380.3,2380.0,1.94161764]
[1728019754040,0.42013,2380.3,2380.1,1.10333764]
[1728019754232,1.2517,2380.4,2380.0,1.10333764]
[1728019754427,0.42016,2380.2,2380.0,1.10333764]
[1728019754933,0.3918,2380.1,2380.0,1.10333764]
[1728019755138,0.3918,2380.1,2380.0,2.73188459]
[1728019755434,0.3918,2380.1,2380.0,2.73186203]
[1728019755632,0.3918,2380.1,2380.0,3.28173834]
[1728019755837,0.8411,2380.4,2380.2,0.42014]
[1728019756035,1.2329,2380.4,2380.2,1.52036827]
[1728019757736,1.65301,2380.4,2380.2,1.52036827]
[1728019758933,1.65303,2380.4,2380.1,3.42558827]
[1728019759137,1.65303,2380.4,2380.0,1.10022827]
[1728019759138,1.93015,2380.2,2380.0,1.10022827]
[1728019759344,0.42022,2379.8,2379.6,1.19922827]
[1728019759541,1.51,2380.0,2379.6,0.4223]
[1728019759742,0.3959,2379.7,2379.6,0.84255]
[1728019760532,0.4206,2379.8,2379.7,0.42024]
[1728019760733,0.4206,2379.8,2379.7,1.93024]
[1728019761547,0.3959,2379.9,2379.8,0.42022]
[1728019761836,1.4426,2380.1,2379.8,1.51]
[1728019762038,1.4426,2380.1,2379.9,0.8433]
[1728019762341,1.4426,2380.1,2379.9,1.26349]
[1728019763139,1.4426,2380.1,2379.7,0.42023]
[1728019763140,0.42019,2380.0,2379.7,0.42023]
[1728019763342,0.42019,2380.0,2379.8,1.51]
[1728019763545,0.3987,2379.9,2379.8,1.51]
[1728019764539,0.3987,2379.9,2379.6,5.99045]
[1728019764747,0.8114,2379.8,2379.6,5.99045]
[1728019767648,0.8114,2379.8,2379.6,5.5702]
[1728019767948,0.8114,2379.8,2379.6,5.99045]
[1728019769440,0.8114,2379.8,2379.6,5.5702]
[1728019769645,1.23163,2379.8,2379.6,5.5702]
[1728019770049,0.8114,2379.8,2379.6,5.99045]
[1728019772438,0.8114,2379.8,2379.6,5.5702]
[1728019772641,0.8114,2379.8,2379.7,0.42024]
[1728019773749,0.8114,2379.8,2379.6,5.99045]
[1728019776941,0.8114,2379.8,2379.6,4.0602]
[1728019776942,1.23163,2379.8,2379.6,4.0602]
[1728019778151,0.8114,2379.8,2379.6,5.5702]
[1728019778755,0.8114,2379.8,2379.6,5.99044]
[1728019781053,0.8114,2379.8,2379.6,2.78264]
[1728019781255,0.8114,2379.8,2379.6,5.99044]
[1728019782462,1.23163,2379.8,2379.6,5.5702]
[1728019782758,0.8114,2379.8,2379.6,5.99045]
[1728019783450,2.3214,2379.8,2379.6,3.2078]
[1728019783652,0.42026,2379.6,2379.4,0.826]
[1728019783860,0.42025,2379.7,2379.4,1.24628]
[1728019785151,0.42025,2379.7,2379.4,2.35078]
[1728019785959,0.42025,2379.7,2379.4,1.9305]
[1728019786161,0.42025,2379.7,2379.5,0.42027]
[1728019786351,0.42025,2379.7,2379.5,1.93027]
[1728019786757,0.42025,2379.7,2379.5,1.51]
[1728019787868,0.42025,2379.7,2379.5,1.93027]
[1728019790059,0.42025,2379.7,2379.5,1.51]
[1728019794866,2.3214,2379.8,2379.4,3.6283]
[1728019795066,0.42025,2379.7,2379.4,4.04859]
[1728019796476,0.42025,2379.7,2379.4,5.55859]
[1728019800079,0.42025,2379.7,2379.5,0.42027]
[1728019800383,1.23163,2379.8,2379.5,0.42026]
[1728019800573,1.23163,2379.8,2379.6,0.42025]
[1728019800777,1.23163,2379.8,2379.7,0.4235]
[1728019800778,1.23162,2379.8,2379.7,0.4235]
[1728019801081,1.23162,2379.8,2379.7,0.825]
[1728019804874,0.42025,2379.6,2379.5,3.2078]
[1728019809585,0.42027,2379.5,2379.4,0.7919]
[1728019809785,0.81807,2379.5,2379.4,0.7919]
[1728019809989,1.0506,2379.7,2379.4,0.7919]
[1728019810286,0.81807,2379.6,2379.4,0.7919]
[1728019810488,0.42027,2379.5,2379.4,0.7919]
[1728019811079,1.51,2379.5,2379.2,1.6503424]
[1728019811393,0.42033,2379.2,2379.1,1.6503424]
[1728019811687,1.51,2379.3,2379.0,3.6191]
[1728019811895,0.82184,2379.1,2379.0,3.6191]
[1728019812084,0.4015,2379.1,2379.0,3.6191]
[1728019812895,0.4015,2379.1,2379.0,4.03946]
[1728019813187,1.93032,2379.3,2379.0,4.03945]
[1728019813487,0.82182,2379.3,2379.0,4.03945]
[1728019814787,0.3906,2379.4,2379.0,3.6191]
[1728019814993,1.022,2379.4,2379.2,1.51]
[1728019815289,1.022,2379.4,2379.3,0.4109]
[1728019815479,1.022,2379.4,2379.3,0.8109]
[1728019817388,0.81578,2379.5,2379.3,0.8109]
[1728019818082,2.3324,2379.7,2379.3,0.8109]
[1728019818279,1.022,2379.6,2379.4,0.4219]
[1728019818488,1.44227,2379.6,2379.4,0.4219]
[1728019820689,1.022,2379.6,2379.4,0.4219]
[1728019821285,0.42027,2379.5,2379.4,0.4219]
[1728019821690,1.44226,2379.6,2379.4,0.4219]
[1728019822087,1.022,2379.6,2379.4,0.4219]
[1728019822278,0.42027,2379.5,2379.4,0.4219]
[1728019824085,1.44226,2379.6,2379.4,0.4219]
[1728019824286,1.44226,2379.6,2379.4,0.84219]
[1728019824691,1.44226,2379.6,2379.4,0.4219]
[1728019825187,0.42027,2379.5,2379.4,0.4219]
[1728019825386,1.022,2379.6,2379.4,0.4219]
[1728019825588,0.42027,2379.5,2379.4,0.4219]
[1728019826097,0.8157,2379.7,2379.4,0.4219]
[1728019826400,1.23595,2379.7,2379.5,0.42026]
[1728019827498,1.23595,2379.7,2379.6,0.4002]
[1728019830800,0.8157,2379.7,2379.5,0.42027]
[1728019830998,1.23595,2379.7,2379.5,0.42027]
[1728019832988,0.8157,2379.7,2379.6,0.42025]
[1728019835193,1.23594,2379.7,2379.6,0.42025]
[1728019835589,0.42025,2379.6,2379.5,3.62806]
[1728019835796,1.23595,2379.7,2379.5,3.62806]
[1728019838008,0.8157,2379.7,2379.5,3.2078]
[1728019838196,0.42025,2379.6,2379.5,3.2078]
[1728019838397,0.83885,2379.6,2379.5,3.2078]
[1728019838593,0.42031,2379.3,2379.2,1.6503424]
[1728019838797,0.42032,2379.3,2379.2,1.61762349]
[1728019839007,0.42032,2379.3,2379.1,2.4784824]
[1728019839196,0.83272,2379.3,2379.1,2.4784824]
[1728019839999,0.4124,2379.3,2379.2,0.42033]
[1728019840197,0.4186,2379.6,2379.3,0.42031]
[1728019840402,0.4186,2379.6,2379.4,0.42029]
[1728019840403,1.69006,2379.6,2379.4,0.42029]
[1728019841004,1.69006,2379.6,2379.3,0.8132]
[1728019841198,0.42029,2379.4,2379.3,0.4176]
[1728019841401,2.7798,2379.6,2379.2,3.2078]
[1728019841596,0.42028,2379.5,2379.3,0.4203]
[1728019841907,0.84498,2379.5,2379.3,0.4203]
[1728019842502,0.84676,2379.6,2379.4,0.42029]
[1728019842701,0.8542,2379.6,2379.3,1.51]
[1728019842906,0.8542,2379.6,2379.4,0.81588]
[1728019843404,0.8542,2379.6,2379.4,0.3956]
[1728019843608,0.4008,2379.8,2379.7,0.42024]
[1728019843805,0.4277,2380.0,2379.7,4.2024]
[1728019844010,0.4277,2380.0,2379.9,0.4202]
[1728019844205,0.42013,2380.3,2380.1,0.42016]
[1728019844606,0.42013,2380.3,2380.0,0.42017]
[1728019845207,2.3191,2380.4,2379.9,0.8192]
[1728019845407,2.73922,2380.4,2380.1,0.42016]
[1728019846213,2.3191,2380.4,2380.0,1.51]
[1728019846408,0.42014,2380.3,2380.0,1.93018]
[1728019846716,0.42013,2380.3,2380.0,0.42017]
[1728019846920,0.42015,2380.2,2380.0,0.42017]
[1728019847108,0.42015,2380.2,2379.9,0.8192]
[1728019847308,0.42015,2380.2,2379.9,1.23939]
[1728019847309,0.4229,2380.1,2379.9,1.23939]
[1728019848012,0.84308,2380.1,2379.9,0.3948]
[1728019848209,0.4105,2380.0,2379.9,0.3948]
[1728019849115,1.9205,2380.0,2379.8,3.2078]
[1728019849316,0.8133,2379.9,2379.8,3.2078]
[1728019849519,0.3931,2379.9,2379.8,3.2078]
[1728019850614,0.3931,2379.9,2379.8,3.62802]
[1728019851421,0.83069,2380.0,2379.8,3.2078]
[1728019851622,0.83069,2380.0,2379.8,3.6073]
[1728019851817,0.83069,2380.0,2379.8,4.02752]
[1728019857423,0.83069,2380.0,2379.8,3.6073]
[1728019858119,0.8307,2380.0,2379.8,3.6073]
[1728019858721,0.8307,2380.0,2379.8,4.02752]
[1728019860218,0.8307,2380.0,2379.8,3.6073]
[1728019861119,0.8307,2380.0,2379.8,4.02751]
[1728019861625,0.4105,2380.0,2379.9,0.4202]
[1728019864219,0.83068,2380.0,2379.8,4.0275]
[1728019864413,0.4105,2380.0,2379.8,3.6073]
[1728019864616,0.4105,2380.0,2379.9,0.4202]
[1728019865923,0.83069,2380.0,2379.8,3.6073]
[1728019866124,0.4202,2379.9,2379.8,3.2078]
[1728019866322,0.8202,2379.9,2379.8,3.2078]
[1728019867125,5.0218,2379.9,2379.8,3.2078]
[1728019867334,11.65212,2379.9,2379.4,0.098]
[1728019867621,11.65212,2379.9,2379.4,0.42028]
[1728019867622,1.93026,2379.6,2379.4,0.42028]
[1728019867923,1.93026,2379.6,2379.3,0.4257]
[1728019867924,0.4204,2379.5,2379.3,0.846]
[1728019868730,1.26637,2379.5,2379.3,0.4203]
[1728019869030,0.8461,2379.5,2379.3,0.4203]
[1728019869523,0.8461,2379.5,2379.4,0.42029]
[1728019870832,1.93024,2379.7,2379.4,0.42029]
[1728019871123,0.42027,2379.5,2379.2,4.0098]
[1728019871432,0.4174,2379.4,2379.3,0.42031]
[1728019873929,2.33105,2379.7,2379.4,0.42028]
[1728019874130,2.72575,2379.7,2379.4,0.84028]
[1728019874335,2.72575,2379.7,2379.5,0.4187]
[1728019875035,0.42025,2379.6,2379.5,0.4187]
[1728019875237,2.72575,2379.7,2379.5,0.4187]
[1728019876930,0.42025,2379.6,2379.4,0.84028]
[1728019877143,0.42025,2379.6,2379.4,0.42028]
[1728019877638,0.42028,2379.5,2379.3,3.6219]
[1728019878136,0.4118,2379.4,2379.3,4.0422]
[1728019878435,2.33105,2379.7,2379.4,0.42028]
[1728019878742,2.33105,2379.7,2379.3,5.1319]
[1728019878743,0.4118,2379.6,2379.3,5.1319]
[1728019879038,0.83206,2379.6,2379.3,5.55219]
[1728019880339,0.4118,2379.6,2379.4,0.42028]
[1728019880840,0.83206,2379.6,2379.4,0.42028]
[1728019883638,0.83206,2379.6,2379.3,5.1319]
[1728019883836,0.83206,2379.6,2379.3,5.5522]
[1728019884539,0.4118,2379.6,2379.3,5.5522]
[1728019885036,1.9218,2379.6,2379.3,3.6281]
[1728019885234,0.83848,2379.5,2379.3,3.6281]
[1728019886541,0.4182,2379.5,2379.3,0.4203]
[1728019886736,0.4182,2379.5,2379.3,3.6281]
[1728019888435,0.83847,2379.5,2379.3,3.6281]
[1728019888631,0.4182,2379.5,2379.3,3.6281]
[1728019889847,0.4182,2379.5,2379.4,0.42029]
[1728019890139,0.83847,2379.5,2379.3,3.6281]
[1728019890643,0.42029,2379.4,2379.3,3.2078]
[1728019893639,0.81029,2379.4,2379.3,3.2078]
[1728019895348,0.39,2379.4,2379.3,3.2078]
[1728019898149,0.81029,2379.4,2379.3,3.2078]
[1728019901753,0.39,2379.4,2379.3,3.2078]
[1728019902160,0.81029,2379.4,2379.3,3.2078]
[1728019905561,0.81029,2379.4,2379.2,0.42033]
[1728019905861,0.4247,2379.3,2379.2,0.42033]
[1728019906052,0.4247,2379.3,2379.1,3.2078]
[1728019906254,0.84501,2379.3,2379.1,3.62814]
[1728019908364,0.4247,2379.3,2379.1,3.62814]
[1728019908950,0.84501,2379.3,2379.1,3.62813]
[1728019910759,0.42034,2379.1,2379.0,0.8348]
[1728019911258,0.80614,2379.1,2379.0,0.8348]
[1728019912363,0.3858,2379.1,2379.0,0.8348]
[1728019912966,0.3858,2379.1,2379.0,1.25516]
[1728019913360,0.3858,2379.1,2379.0,0.8348]
[1728019913555,0.80614,2379.1,2379.0,0.8348]
[1728019918065,0.80614,2379.1,2379.0,0.4096]
[1728019920570,0.3858,2379.1,2379.0,0.4096]
[1728019921466,0.42037,2379.0,2378.8,3.6074]
[1728019921768,1.9135,2379.0,2378.8,3.6074]
[1728019922068,0.42038,2378.9,2378.8,3.6074]
[1728019922468,4.62438,2378.9,2378.8,3.2078]
[1728019922658,5.03318,2378.9,2378.8,3.2078]
[1728019925879,0.42043,2378.6,2378.5,0.8361]
[1728019926080,1.93043,2378.6,2378.3,0.84457]
[1728019926277,0.4137,2378.5,2378.3,1.23397]
[1728019927578,0.4137,2378.5,2378.3,0.8135]
[1728019927769,0.4137,2378.5,2378.3,1.23398]
[1728019927972,0.4137,2378.5,2378.3,0.8135]
[1728019928181,0.4137,2378.5,2378.3,1.23398]
[1728019928577,0.4137,2378.5,2378.3,0.8135]
[1728019928774,0.4137,2378.5,2378.4,0.42047]
[1728019928976,0.4137,2378.5,2378.3,0.8135]
[1728019929178,1.415,2378.8,2378.3,0.8135]
[1728019929373,1.51,2378.6,2378.4,0.42045]
[1728019930679,1.51,2378.6,2378.4,0.42046]
[1728019930881,1.51,2378.6,2378.5,0.3892]
[1728019936491,1.93043,2378.6,2378.4,0.42047]
[1728019937887,1.51,2378.6,2378.4,0.42047]
[1728019946092,1.51,2378.6,2378.3,4.4264]
[1728019946290,1.51,2378.6,2378.5,0.42045]
[1728019947587,0.3919,2378.7,2378.3,4.4264]
[1728019947789,0.393,2378.8,2378.7,0.42041]
[1728019948387,0.8015,2378.8,2378.7,0.42041]
[1728019948988,7.3288,2379.2,2378.6,3.2078]
[1728019949186,0.8187,2379.1,2378.7,1.2017]
[1728019949392,1.93036,2379.0,2378.8,0.42039]
[1728019949588,1.51,2379.0,2378.7,0.3959]
[1728019949787,0.8187,2379.1,2378.3,1.19119913]
[1728019949788,1.9304,2378.8,2378.6,0.42043]
[1728019949987,0.8083,2378.7,2378.6,0.42043]
[1728019950192,0.8083,2378.7,2378.5,0.83444]
[1728019950588,0.8083,2378.7,2378.6,0.42043]
[1728019950791,0.8083,2378.7,2378.5,0.83444]
[1728019951388,1.22873,2378.7,2378.4,0.81636]
[1728019951594,0.4147,2378.6,2378.4,0.81636]
[1728019952092,1.9247,2378.6,2378.4,0.81636]
[1728019952396,2.34514,2378.6,2378.4,0.81636]
[1728019952598,1.9247,2378.6,2378.4,0.81636]
[1728019953892,2.34514,2378.6,2378.4,0.81636]
[1728019955595,1.9247,2378.6,2378.4,0.81636]
[1728019956493,2.34513,2378.6,2378.4,0.81636]
[1728019957904,1.9247,2378.6,2378.5,0.42045]
[1728019958095,1.9247,2378.6,2378.4,0.81635]
[1728019958400,2.34513,2378.6,2378.4,0.81635]
[1728019958798,1.51,2378.5,2378.3,3.2078]
[1728019959102,0.82747,2378.4,2378.3,3.2078]
[1728019959299,1.24707,2378.4,2378.3,3.2078]
[1728019961699,0.8266,2378.4,2378.3,3.2078]
[1728019962101,1.24707,2378.4,2378.3,3.2078]
[1728019962494,1.24707,2378.4,2378.0,5.13932913]
[1728019962495,5.0314,2378.4,2378.0,5.13932913]
[1728019962695,1.51,2378.2,2378.0,5.13932913]
[1728019962894,1.51,2378.2,2378.0,4.71879913]
[1728019963092,1.51,2378.2,2377.7,7.57157579]
[1728019963093,0.42056,2377.9,2377.7,6.47837666]
[1728019963295,2.3275,2377.8,2377.5,4.72160913]
[1728019963489,1.51,2377.6,2377.5,3.62841]
[1728019965596,3.2078,2378.3,2377.5,3.2078]
[1728019965796,1.9333,2378.1,2377.9,0.42054]
[1728019966391,1.9333,2378.1,2377.6,1.19119913]
[1728019966392,1.9333,2378.1,2377.7,0.8178]
[1728019966596,1.9333,2378.1,2377.9,0.42056]
[1728019967403,1.9333,2378.1,2377.8,3.619]
[1728019967595,1.51,2377.9,2377.8,4.03956]
[1728019973494,1.51,2377.9,2377.8,3.62836]
[1728019978605,1.51,2377.9,2377.8,4.02146]
[1728019979613,1.51,2378.1,2378.0,0.42054]
[1728019981103,1.9193,2378.2,2377.8,3.6009]
[1728019981302,1.51,2378.2,2378.1,0.42052]
[1728019985104,0.42047,2378.4,2378.0,0.8297]
[1728019985105,1.8963,2378.5,2378.0,0.8297]
[1728019985307,1.8963,2378.5,2378.4,0.42047]
[1728019985511,3.4063,2378.5,2378.3,0.42048]
[1728019985714,3.4063,2378.5,2378.2,3.62829]
[1728019985715,1.51,2378.4,2378.2,3.62829]
[1728019985910,1.51,2378.3,2378.2,0.42049]
[1728019990217,1.8963,2378.5,2378.0,0.8297]
[1728019990418,1.8963,2378.5,2378.4,0.42047]
[1728019990710,3.4063,2378.5,2378.4,0.42047]
[1728019991105,1.9295,2378.5,2378.4,0.42047]
[1728019991309,1.9269,2378.6,2378.3,0.3923]
[1728019991505,1.51,2378.6,2378.5,0.42045]
[1728019993716,1.51,2378.6,2378.4,0.3931]
[1728019993920,1.51,2378.5,2378.4,0.42046]
[1728019999714,1.51,2378.6,2378.3,0.42048]
[1728019999920,1.51,2378.6,2378.4,0.3925]
[1728020000118,1.51,2378.6,2378.5,0.4053]
[1728020000319,1.51,2378.6,2378.5,0.82575]
[1728020003228,1.51,2378.6,2378.1,2.14447913]
[1728020003229,11.714,2378.6,2378.1,1.09319913]
[1728020003427,1.51,2378.2,2378.1,0.42052]
[1728020006525,1.9296,2378.2,2378.1,0.42052]
[1728020010535,0.4196,2378.2,2378.1,0.42052]
[1728020010834,1.9296,2378.2,2378.1,0.42052]
[1728020013237,0.4196,2378.2,2378.1,0.42052]
[1728020013538,1.51,2378.2,2378.1,0.42052]
[1728020018439,1.4484,2378.6,2378.1,10.2048]
[1728020018644,3.3714,2378.6,2378.5,0.42045]
[1728020019844,2.3354,2378.6,2378.5,0.42045]
[1728020021641,1.923,2378.6,2378.5,0.42045]
[1728020023644,1.923,2378.6,2378.5,0.83485]
[1728020034347,2.3164,2378.6,2378.5,0.83485]
[1728020037055,2.3164,2378.6,2378.5,0.42045]
[1728020039364,2.3164,2378.6,2378.5,1.22965]
[1728020040654,2.3164,2378.6,2378.5,4.43745]
[1728020041042,2.3164,2378.6,2378.5,3.62825]
[1728020041244,6.5204,2378.6,2378.0,1.19119913]
[1728020041450,1.51,2378.1,2378.0,0.42053]
[1728020041753,1.04,2378.4,2378.2,0.4205]
[1728020042053,1.51,2378.1,2378.0,0.42054]
[1728020042250,1.51,2378.1,2378.0,1.24914]
[1728020042853,1.51,2378.1,2378.0,1.66894]
[1728020044553,1.51,2378.1,2378.0,5.87374]
[1728020044753,1.9193,2378.3,2378.2,0.4205]
[1728020060353,1.9193,2378.3,2378.1,0.42051]
[1728020060957,1.9193,2378.3,2378.0,2.34159913]
[1728020061158,1.51,2378.1,2378.0,2.76213913]
[1728020061658,1.51,2378.1,2378.0,6.96693913]
[1728020061870,1.51,2378.1,2377.9,1.09319913]
[1728020062056,2.7141,2378.0,2377.8,1.09319913]
[1728020062257,3.13464,2378.0,2377.7,1.09319913]
[1728020062464,1.51,2377.8,2377.6,2.30998913]
[1728020062766,1.51,2377.8,2377.6,1.21679]
[1728020063068,0.4162,2377.7,2377.6,1.21679]
[1728020064066,0.4162,2377.7,2377.6,0.7962]
[1728020064364,0.4162,2377.7,2377.6,1.21681]
[1728020065371,1.51,2377.9,2377.7,0.42059]
[1728020065567,1.51,2377.9,2377.8,0.3861]
[1728020066262,1.51,2377.9,2377.8,0.80667]
[1728020073873,1.51,2378.0,2377.8,0.3861]
[1728020074075,1.51,2378.0,2377.9,0.42056]
[1728020074273,1.51,2378.2,2378.0,0.42052]
[1728020074467,1.51,2378.2,2378.1,0.8496]
[1728020076770,1.51,2378.2,2378.1,1.27012]
[1728020078677,1.51,2378.2,2378.1,0.8496]
[1728020084776,1.51,2378.2,2378.1,1.27012]
[1728020085576,1.51,2378.2,2378.1,0.8496]
[1728020085876,1.51,2378.2,2378.1,1.27012]
[1728020090575,1.51,2378.2,2378.1,0.8496]
[1728020090773,1.51,2378.2,2378.1,1.27012]
[1728020091483,1.51,2378.2,2378.0,0.42052]
[1728020091882,1.51,2378.2,2377.9,1.87489913]
[1728020092079,1.51,2378.2,2378.1,0.42052]
[1728020100288,1.51,2378.2,2378.0,1.09319913]
[1728020100493,1.51,2378.2,2378.1,0.42052]
[1728020106991,3.2078,2378.6,2378.2,0.4205]
[1728020107192,0.418,2378.5,2378.4,0.42046]
[1728020107494,0.418,2378.5,2378.4,1.09319913]
[1728020107894,0.418,2378.5,2378.4,1.51366913]
[1728020110299,0.418,2378.5,2378.4,0.42047]
[1728020111093,0.418,2378.5,2378.4,1.51366913]
[1728020111493,0.418,2378.5,2378.4,0.42047]
[1728020117403,1.51,2378.6,2378.3,3.9986]
[1728020117404,1.51,2378.7,2378.6,0.42043]
[1728020117599,0.4002,2378.7,2378.6,0.42043]
[1728020118601,0.4002,2378.7,2378.6,1.22733]
[1728020120809,2.666,2378.9,2378.7,0.4204]
[1728020121008,0.4147,2378.8,2378.7,0.4204]
[1728020121905,0.4147,2378.8,2378.7,0.42041]
[1728020125100,0.4147,2378.8,2378.6,4.43512]
[1728020125300,1.51,2378.7,2378.6,0.8069]
[1728020125913,1.51,2378.7,2378.6,1.22733]
[1728020128009,1.51,2378.7,2378.6,0.42043]
[1728020130412,1.51,2378.7,2378.5,0.42044]
[1728020130413,1.93041,2378.7,2378.5,0.42044]
[1728020130608,1.51,2378.5,2378.4,4.47057]
[1728020131518,1.51,2378.5,2378.4,1.26277]
[1728020131717,1.51,2378.5,2378.4,4.47057]
[1728020132514,1.51,2378.5,2378.4,1.26277]
[1728020132716,1.51,2378.5,2378.4,4.47057]
[1728020134515,1.911,2378.5,2378.4,4.47057]
[1728020134709,1.911,2378.5,2378.4,3.2078]
[1728020134912,2.33145,2378.5,2378.4,3.2078]
[1728020135112,6.53625,2378.5,2378.4,3.2078]
[1728020135316,0.42048,2378.4,2378.1,1.27001]
[1728020135618,1.51,2378.2,2378.1,1.27001]
[1728020136012,1.51,2378.3,2378.2,0.4205]
[1728020139222,1.51,2378.3,2378.1,1.27001]
[1728020139417,1.51,2378.3,2378.1,0.8495]
[1728020139623,1.51,2378.3,2378.2,0.4205]
[1728020140021,1.51,2378.3,2378.1,1.27001]
[1728020141724,0.3873,2378.2,2378.1,1.27001]
[1728020142225,1.8973,2378.2,2378.1,0.8495]
[1728020144626,1.8973,2378.2,2378.1,1.27002]
[1728020147525,12.1021,2378.2,2377.8,0.098]
[1728020147726,12.1021,2378.2,2377.6,2.20679869]
[1728020147727,1.93056,2377.9,2377.6,0.5186]
[1728020148028,0.4122,2378.1,2377.6,0.5186]
[1728020148029,1.51,2377.7,2377.6,0.42061]
[1728020148230,1.51,2377.7,2377.5,1.23061]
[1728020148432,1.51,2377.7,2377.6,0.42061]
[1728020150025,1.51,2377.7,2377.5,1.23062]
[1728020150227,1.51,2377.6,2377.5,0.81]
[1728020151431,1.51,2377.6,2377.5,1.23063]
[1728020154136,1.51,2377.6,2377.5,0.81]
[1728020156834,1.51,2377.6,2377.5,1.23063]
[1728020158230,1.51,2377.6,2377.5,0.81]
[1728020161636,2.621,2377.7,2377.5,1.23062]
[1728020162531,1.537,2377.8,2377.5,0.81]
[1728020162731,0.426,2377.8,2377.7,0.42059]
[1728020163126,1.51,2378.0,2377.6,0.4159]
[1728020163431,1.51,2378.0,2377.8,0.42056]
[1728020163432,2.621,2378.0,2377.8,0.42056]
[1728020163638,2.621,2378.0,2377.9,0.8049]
[1728020163934,1.51,2378.0,2377.9,0.8049]
[1728020164130,1.51,2378.0,2377.9,1.2208]